fUST/lending_fUST_20250815
["ID","MTS","AMOUNT","RATE_DAILY","PERIOD"]
[379260619,1755232237362,-500.0,0.00023073,2]
[379260620,1755232237372,-571.43718951,0.00023073,2]
[379260621,1755232237381,-500.89130383,0.00023073,2]
[379260622,1755232237391,-238.34621969,0.00023073,2]
[379260623,1755232237400,-969.23,0.00023089,2]
[379260624,1755232237410,-160.0,0.0002309,3]
[379260625,1755232237419,-94935.52552012,0.000231,2]
[379260649,1755232237802,-1331.42162556,0.000231,2]
[379260651,1755232237814,-3565.30238062,0.000231,2]
[379260653,1755232237826,-1648.76776359,0.000231,2]
[379260655,1755232237838,-5669.88761895,0.000231,2]
[379260658,1755232237860,-26397.34491666,0.000231,2]
[379260660,1755232237869,-874.49715089,0.000231,7]
[379260664,1755232237879,-2871.202964,0.000231,7]
[379260742,1755232242841,-500.0,0.00019584,2]
[379260744,1755232242850,-577.43288858,0.00019584,2]
[379260746,1755232242859,-500.0,0.00019584,2]
[379260748,1755232242868,-500.0,0.00019584,2]
[379260750,1755232242878,-226.58409073,0.00019584,2]
[379260753,1755232242887,-373.6419603,0.00019584,2]
[379260754,1755232242895,-25.70106039,0.00019584,2]
[379260949,1755232245884,-474.29893961,0.00019584,2]
[379260950,1755232245892,-500.0,0.00019584,2]
[379260951,1755232245901,-178.6540805,0.00019584,2]
[379260971,1755232517509,166.163777,0.00013699,2]
[379260972,1755232556107,1014.5,0.00028365,60]
[379260985,1755233351158,-571.98623878,0.00019479,2]
[379260989,1755233432312,-414.98226756,0.00019479,2]
[379260990,1755233432323,-160.0,0.00019566,2]
[379260991,1755233432332,-500.0,0.00019573,2]
[379260992,1755233432342,-843.47195277,0.00019576,2]
[379260993,1755233432352,-232.08354597,0.00019577,2]
[379260994,1755233432362,-216.77912109,0.00019577,2]
[379260995,1755233432371,-300.0,0.00019577,2]
[379260996,1755233432381,-883.0,0.00019577,2]
[379260997,1755233432391,-500.0,0.00019578,2]
[379260998,1755233432401,-500.0,0.00019578,2]
[379260999,1755233432410,-500.0,0.00019578,2]
[379261000,1755233432420,-500.0,0.00019578,2]
[379261001,1755233432429,-496.45653189,0.00019578,2]
[379261002,1755233432439,-500.0,0.00019578,2]
[379261003,1755233432448,-500.0,0.00019578,2]
[379261004,1755233432458,-500.0,0.00019578,2]
[379261005,1755233432468,-500.0,0.00019578,2]
[379261006,1755233432478,-500.0,0.00019578,2]
[379261007,1755233432487,-0.1855997,0.00019578,2]
[379261008,1755233432499,-499.8144003,0.00019578,2]
[379261009,1755233432510,-500.0,0.00019578,2]
[379261011,1755233432519,-500.0,0.00019578,2]
[379261013,1755233432529,-500.0,0.00019578,2]
[379261015,1755233432540,-500.0,0.00019578,2]
[379261017,1755233432550,-470.89640936,0.00019578,2]
[379261019,1755233432560,-500.0,0.00019578,2]
[379261021,1755233432569,-500.0,0.00019578,2]
[379261023,1755233432579,-500.0,0.00019578,2]
[379261025,1755233432588,-154.27221834,0.00019578,2]
[379261027,1755233432600,-345.72778166,0.00019578,2]
[379261029,1755233432610,-246.65120734,0.00019578,2]
[379261031,1755233432621,-253.34879266,0.00019578,2]
[379261033,1755233432630,-500.0,0.00019578,2]
[379261035,1755233432639,-500.0,0.00019578,2]
[379261037,1755233432649,-500.0,0.00019578,2]
[379261039,1755233432658,-529.92945289,0.00019578,2]
[379261041,1755233432667,-333.80300312,0.00019578,2]
[379261252,1755233438160,-2913.1097685,0.00019578,2]
[379261259,1755233438215,-1852.35128877,0.00019578,2]
[379261261,1755233438227,-1038.4071728,0.00019578,2]
[379261263,1755233438239,-1152.68162522,0.00019578,2]
[379261265,1755233438250,-570.82270201,0.00019578,2]
[379261432,1755233440154,-728.42581903,0.00019578,2]
[379261740,1755233443096,-1007.75674693,0.00019578,2]
[379262004,1755233446024,-278.96385112,0.00019383,2]
[379262006,1755233446034,-587.89009218,0.00019578,2]
[379262012,1755233446079,-313.317136,0.00019578,2]
[379264699,1755233820866,260.4310016,0.00013699,2]
[379264704,1755234318081,810.38419556,0.00023,30]
[379264705,1755234561625,-6640.13843962,0.00017459,2]
[379264706,1755234568100,-254.8771456,0.00017459,2]
[379264707,1755234572113,-23.86548908,0.00017459,2]
[379264708,1755234572134,-272.5359392,0.00018183,2]
[379264709,1755234572154,-181.71384191,0.0001836,2]
[379264710,1755234572174,-184.86,0.00018451,3]
[379264711,1755234572195,-554.59,0.00018451,3]
[379264712,1755234572214,-1123.0,0.00018458,2]
[379264713,1755234572234,-300.0,0.00018458,2]
[379264714,1755234572255,-500.0,0.00018459,2]
[379264715,1755234572275,-500.0,0.00018459,2]
[379264716,1755234572294,-500.0,0.00018459,2]
[379264717,1755234572315,-500.0,0.00018459,2]
[379264718,1755234572336,-486.79515437,0.00018459,2]
[379264719,1755234572360,-202.99294529,0.00018459,2]
[379264720,1755234572380,-500.0,0.00018459,2]
[379264721,1755234572401,-629.45107723,0.00018459,2]
[379264722,1755234572423,-500.0,0.00018459,2]
[379264723,1755234572444,-500.0,0.00018459,2]
[379264724,1755234572465,-500.0,0.00018459,2]
[379264725,1755234572485,-185.74318984,0.00018459,2]
[379264726,1755234572506,-500.0,0.00018459,2]
[379264727,1755234572527,-500.0,0.00018459,2]
[379264728,1755234572547,-3357.41613642,0.00018459,2]
[379264729,1755234574114,-272.81762512,0.00018459,2]
[379264730,1755234574136,-31232.59624553,0.00018459,2]
[379264731,1755234574158,-500.0,0.0001846,2]
[379264732,1755234574180,-500.0,0.0001846,2]
[379264733,1755234574203,-500.0,0.0001846,2]
[379264734,1755234574358,-500.0,0.0001846,2]
[379264735,1755234574387,-500.0,0.0001846,2]
[379264736,1755234574411,-500.0,0.0001846,2]
[379264737,1755234574434,-500.0,0.0001846,2]
[379264738,1755234574456,-500.0,0.0001846,2]
[379264739,1755234574482,-500.0,0.0001846,2]
[379264740,1755234574518,-311.04573608,0.0001846,2]
[379264741,1755234574542,-500.0,0.0001846,2]
[379264742,1755234574564,-500.0,0.0001846,2]
[379264743,1755234574586,-500.0,0.0001846,2]
[379264744,1755234574608,-500.0,0.0001846,2]
[379264745,1755234574630,-500.0,0.0001846,2]
[379264746,1755234574651,-500.0,0.0001846,2]
[379264747,1755234574672,-500.0,0.0001846,2]
[379264748,1755234574693,-500.0,0.0001846,2]
[379264749,1755234574715,-500.0,0.0001846,2]
[379264750,1755234574736,-500.0,0.0001846,2]
[379264751,1755234574767,-500.0,0.0001846,2]
[379264752,1755234574789,-500.0,0.0001846,2]
[379264753,1755234574810,-500.0,0.0001846,2]
[379264754,1755234574831,-650.0,0.0001846,2]
[379264755,1755234574851,-500.0,0.0001846,2]
[379264756,1755234574871,-1031.50872636,0.0001846,2]
[379264757,1755234574891,-101768.6430489,0.00018461,2]
[379264758,1755234574911,-500.0,0.00018473,2]
[379264759,1755234574930,-573.15541073,0.00018473,2]
[379264760,1755234574949,-500.0,0.00018473,2]
[379264761,1755234574968,-354.02407932,0.00018473,2]
[379264762,1755234574988,-528.6354037,0.00018473,2]
[379264763,1755234575010,-200.0,0.00018828,20]
[379264764,1755234575032,-200.0,0.00018828,20]
[379264765,1755234575055,-200.0,0.00018828,20]
[379264766,1755234575076,-200.0,0.00018828,20]
[379264767,1755234575098,-141.88529968,0.00018828,20]
[379264779,1755234632454,-58.11470032,0.00018828,20]
[379264780,1755234632463,-200.0,0.00018828,20]
[379264781,1755234632472,-460.0,0.00019178,2]
[379264782,1755234632482,-460.0,0.00019178,2]
[379264784,1755234632491,-409.72529617,0.00019178,2]
[379264829,1755234638400,-256.27470383,0.00019178,2]
[379264831,1755234638410,-1223.03183746,0.000192,2]
[379264834,1755234638421,-1776.96816254,0.000192,2]
[379264836,1755234638430,-500.0,0.00019254,2]
[379264838,1755234638440,-500.0,0.00019254,2]
[379264840,1755234638453,-236.65692157,0.00019375,2]
[379264842,1755234638462,-500.0,0.0001945,2]
[379264844,1755234638473,-300.0,0.00019451,2]
[379264846,1755234638484,-460.0,0.00019452,2]
[379264848,1755234638494,-460.0,0.00019452,2]
[379264850,1755234638505,-501.47569652,0.00019473,2]
[379264852,1755234638514,-203.24920685,0.00019473,2]
[379264854,1755234638523,-232.08354597,0.00019493,2]
[379264856,1755234638532,-216.77912109,0.00019493,2]
[379264858,1755234638542,-160.0,0.00019565,2]
[379264860,1755234638551,-843.47195277,0.00019566,2]
[379264862,1755234638560,-565.38,0.0001957,2]
[379264863,1755234638570,-460.0,0.0001958,2]
[379264864,1755234638581,-460.0,0.00019726,2]
[379264865,1755234638590,-460.0,0.00019726,2]
[379264866,1755234638599,-1000.0,0.00019802,2]
[379264867,1755234638609,-369.72,0.00019821,3]
[379264868,1755234638618,-565.38,0.00019844,2]
[379264869,1755234638627,-460.0,0.00019853,2]
[379264870,1755234638636,-227.285053,0.00019863,2]
[379264871,1755234638646,-460.0,0.0002,2]
[379264872,1755234638655,-460.0,0.0002,2]
[379264873,1755234638664,-565.38,0.00020118,2]
[379264874,1755234638673,-653.57,0.00020124,2]
[379264875,1755234638682,-460.0,0.00020127,2]
[379264876,1755234638691,-304.0059596,0.00020223,2]
[379264877,1755234638701,-460.0,0.00020273,2]
[379264878,1755234638710,-500.0,0.00020286,2]
[379264879,1755234638720,-1014.23831877,0.0002035,2]
[379264880,1755234638729,-565.38,0.00020392,2]
[379264881,1755234638738,-460.0,0.00020401,2]
[379264882,1755234638748,-460.0,0.00020547,2]
[379264883,1755234638757,-565.38,0.00020666,2]
[379264884,1755234638766,-460.0,0.00020675,2]
[379264885,1755234638775,-200.0,0.00020677,20]
[379264886,1755234638785,-200.0,0.00020677,20]
[379264887,1755234638794,-200.0,0.00020677,20]
[379264888,1755234638804,-200.0,0.00020677,20]
[379264889,1755234638813,-200.0,0.00020677,20]
[379264890,1755234638823,-200.0,0.00020677,20]
[379264891,1755234638832,-200.0,0.00020677,20]
[379264892,1755234638842,-280.0,0.00020677,20]
[379264893,1755234638851,-153.188761,0.00020726,2]
[379264894,1755234638860,-154.595287,0.00020726,2]
[379264895,1755234638870,-1111.50878364,0.000209,2]
[379264897,1755234638882,-297.27571184,0.000209,2]
[379264898,1755234638892,-565.38,0.0002094,2]
[379264899,1755234638901,-2265.04707038,0.00020948,2]
[379264901,1755234638911,-460.0,0.00020949,2]
[379264902,1755234638920,-160.0,0.00021,4]
[379264904,1755234638929,-160.0,0.00021,4]
[379264906,1755234638939,-1000.0,0.00021048,2]
[379264908,1755234638949,-470.04140685,0.00021048,2]
[379265346,1755234643406,-358.81192125,0.00021048,2]
[379265634,1755234646308,-171.1466719,0.00021048,2]
[379265636,1755234646318,-1109.172457,0.00021048,2]
[379265638,1755234646328,-160.0,0.00021089,2]
[379265640,1755234646337,-420.0,0.00021192,2]
[379265642,1755234646347,-565.38,0.00021214,2]
[379265644,1755234646356,-460.0,0.00021223,2]
[379265646,1755234646366,-150.0,0.000213,2]
[379265648,1755234646379,-3903.0369021,0.00021356,2]
[379265650,1755234646390,-641.00223132,0.00021356,2]
[379270030,1755235538090,-162.68728457,0.00016874,2]
[379270031,1755235538113,-132.51044466,0.00017735,2]
[379270032,1755235629071,-123.23056144,0.00017735,2]
[379270033,1755235629093,-106.41571195,0.000189,2]
[379270034,1755235652086,-1224.0304951,0.000189,2]
[379270035,1755235652108,-843.47195277,0.00019075,2]
[379270036,1755235652129,-232.08354597,0.00019075,2]
[379270037,1755235652149,-216.77912109,0.00019075,2]
[379270038,1755235652171,-300.0,0.00019177,2]
[379270039,1755235652193,-460.0,0.00019178,2]
[379270040,1755235652216,-460.0,0.00019178,2]
[379270041,1755235652238,-460.0,0.00019178,2]
[379270042,1755235652260,-263.83433274,0.00019178,2]
[379270043,1755235715905,316.73954245,0.0002,120]
[379270044,1755235747123,-294.98,0.000189,2]
[379270056,1755235832517,-180.23870659,0.00018464,2]
[379270057,1755235832527,-591.98413803,0.000189,2]
[379270058,1755235832536,-1315.35439455,0.00019078,2]
[379270059,1755235832545,-843.47195277,0.00019078,2]
[379270060,1755235832555,-232.08354597,0.00019078,2]
[379270062,1755235832564,-1200.0,0.00019177,2]
[379270064,1755235832573,-216.77912109,0.00019178,2]
[379270065,1755235832582,-511.55483492,0.00019178,2]
[379270066,1755235832592,-300.0,0.00019198,2]
[379270067,1755235832601,-300.0,0.00019198,2]
[379270068,1755235832610,-438.0,0.00019199,2]
[379270069,1755235832619,-2229.19473651,0.000192,2]
[379270070,1755235832631,-384.10845246,0.000192,2]
[379270071,1755235832640,-460.0,0.00019452,2]
[379270072,1755235832650,-200.0,0.00019583,20]
[379270073,1755235832659,-200.0,0.00019583,20]
[379270074,1755235832668,-200.0,0.00019583,20]
[379270075,1755235832677,-200.0,0.00019583,20]
[379270076,1755235832686,-200.0,0.00019583,20]
[379270077,1755235832695,-200.0,0.00019583,20]
[379270078,1755235832704,-460.0,0.00019726,2]
[379270079,1755235832713,-302.69733596,0.00019781,2]
[379270080,1755235832723,-5000.0,0.00019789,2]
[379270081,1755235832732,-384.143577,0.00019863,2]
[379270082,1755235832741,-1210.0828685,0.00019869,2]
[379270083,1755235832750,-454.04600394,0.00019978,4]
[379270084,1755235832759,-236.70571612,0.0002,2]
[379270085,1755235832770,-223.29428388,0.0002,2]
[379270086,1755235832779,-481.88778786,0.00020037,2]
[379270087,1755235832788,-460.0,0.00020037,2]
[379270088,1755235832797,-372.051907,0.00020176,4]
[379270089,1755235832806,-645.25,0.00020183,2]
[379270090,1755235832815,-460.0,0.00020272,2]
[379270091,1755235832824,-460.0,0.00020272,2]
[379270092,1755235832833,-460.0,0.00020272,2]
[379270093,1755235832842,-527.00251088,0.00020273,2]
[379270094,1755235832851,-52.96763442,0.00020286,2]
[379270105,1755235838339,-447.03236558,0.00020286,2]
[379270106,1755235838350,-460.0,0.00020399,2]
[379270107,1755235838359,-460.0,0.00020399,2]
[379270108,1755235838369,-354.02407932,0.0002048,2]
[379270109,1755235838380,-500.0,0.0002048,2]
[379270110,1755235838389,-460.0,0.00020673,2]
[379270111,1755235838398,-420.0,0.00020922,2]
[379270112,1755235838409,-460.0,0.00020947,2]
[379270113,1755235838418,-192.21187149,0.00021,2]
[379270114,1755235838878,-208.3078313,0.00021,2]
[379270115,1755235838887,-271.35723151,0.00021,2]
[379270116,1755235838897,-369.22040532,0.00021221,2]
[379270117,1755235838972,-90.77959468,0.00021221,2]
[379270118,1755235838981,-863.59744303,0.00021302,2]
[379270119,1755235838990,-151.0,0.00021356,2]
[379270120,1755235838999,-2183.31810187,0.00021356,2]
[379270121,1755235839008,-5398.04020442,0.00021356,2]
[379270122,1755235839018,-667.25937639,0.00021402,2]
[379270123,1755235839027,-2264.10087163,0.00021411,2]
[379270124,1755235839037,-460.0,0.00021495,2]
[379270125,1755235839046,-166.5,0.000215,2]
[379270126,1755235839056,-200.0,0.00021503,20]
[379270127,1755235839065,-200.0,0.00021503,20]
[379270128,1755235839075,-200.0,0.00021503,20]
[379270129,1755235839085,-200.0,0.00021503,20]
[379270130,1755235839094,-200.0,0.00021503,20]
[379270131,1755235839103,-200.0,0.00021503,20]
[379270132,1755235839113,-200.0,0.00021503,20]
[379270133,1755235839122,-280.0,0.00021503,20]
[379270134,1755235839132,-160.0,0.000216,2]
[379270135,1755235839141,-416.2081145,0.00021644,2]
[379270136,1755235839150,-587.2875172,0.00021644,2]
[379270137,1755235839160,-293.6437586,0.00021644,2]
[379270138,1755235839169,-587.2875172,0.00021644,2]
[379270139,1755235839178,-293.6437586,0.00021644,2]
[379270140,1755235839188,-293.6437586,0.00021644,2]
[379270141,1755235839198,-293.6437586,0.00021644,2]
[379270142,1755235839207,-460.0,0.00021769,2]
[379270143,1755235839217,-166.5,0.00022,2]
[379270144,1755235839226,-162.98529798,0.00022,5]
[379270145,1755235839235,-158.195,0.00022,2]
[379270146,1755235839245,-1290.51,0.00022018,2]
[379270147,1755235839254,-460.0,0.00022043,2]
[379270148,1755235839264,-1006.959,0.00022071,2]
[379270149,1755235839273,-408.0,0.00022071,2]
[379270150,1755235839282,-260.0,0.00022148,2]
[379270151,1755235839291,-300.33254948,0.00022219,2]
[379270152,1755235839300,-187.30479887,0.00022219,2]
[379270153,1755235839309,-200.0,0.0002222,4]
[379270154,1755235839319,-863.59744299,0.0002229,2]
[379270155,1755235839328,-263.34307843,0.00022315,2]
[379270156,1755235839338,-460.0,0.00022317,2]
[379270157,1755235839348,-293.6437586,0.00022466,2]
[379270158,1755235839357,-561.41657077,0.00022478,2]
[379270159,1755235839367,-869.9342161,0.00022548,2]
[379270160,1755235839379,-460.0,0.00022591,2]
[379270161,1755235839388,-360.0,0.00022696,2]
[379270162,1755235839398,-645.0,0.000227,2]
[379270163,1755235839407,-587.0,0.000228,2]
[379270164,1755235839417,-500.0,0.0002283,8]
[379270165,1755235839438,-460.0,0.00022865,2]
[379270166,1755235839447,-825.20698108,0.000229,2]
[379270167,1755235839457,-439.0,0.00022918,2]
[379270168,1755235839468,-800.0,0.0002298,2]
[379270169,1755235839479,-1499.26,0.0002299,10]
[379270170,1755235839490,-2972.87,0.0002299,10]
[379270171,1755235839502,-2477.39,0.0002299,10]
[379270172,1755235839514,-13387.20537254,0.00022998,2]
[379270173,1755235839527,-461.3250708,0.00022998,2]
[379270174,1755235839539,-6247.11254299,0.00022998,2]
[379270185,1755235840739,-25.5162526,0.00022998,2]
[379270194,1755235843655,-32.79974769,0.00022998,2]
[379270216,1755236557733,67167.4,0.0003,120]
[379270881,1755237043627,-620.62,0.00020122,2]
[379270884,1755237043638,-843.47195277,0.0002138,2]
[379270886,1755237043648,-232.08354597,0.0002138,2]
[379270888,1755237043659,-216.77912109,0.0002138,2]
[379270890,1755237043670,-206.0962047,0.00021758,2]
[379270892,1755237043680,-307.314861,0.00021807,2]
[379270894,1755237043690,-1054.61557088,0.00021964,2]
[379270897,1755237043707,-186.61442912,0.00021964,2]
[379270899,1755237043717,-300.0,0.00021999,2]
[379270901,1755237043727,-139.74318535,0.00022,3]
[379271190,1755237046603,-672.492086,0.00022,3]
[379276949,1755238232137,-281.95768232,0.00019204,2]
[379277008,1755238237741,-314.96231768,0.00019204,2]
[379277009,1755238237751,-261.95284049,0.00019763,2]
[379277010,1755238237760,-294.070913,0.00019863,2]
[379277011,1755238237770,-843.47195277,0.00019892,2]
[379277012,1755238237779,-232.08354597,0.00019892,2]
[379277013,1755238237788,-216.77912109,0.00019892,2]
[379277014,1755238237798,-300.0,0.00019896,2]
[379277015,1755238237807,-500.0,0.00019897,2]
[379277016,1755238237817,-500.0,0.00019897,2]
[379277017,1755238237827,-500.0,0.00019897,2]
[379277018,1755238237837,-500.0,0.00019897,2]
[379277019,1755238237847,-160.0,0.000199,2]
[379277020,1755238237857,-765.20122242,0.000199,2]
[379277021,1755238237866,-1193.84,0.00020119,2]
[379277022,1755238237876,-200.0,0.00020294,20]
[379277023,1755238237885,-200.0,0.00020294,20]
[379277024,1755238237894,-200.0,0.00020294,20]
[379277025,1755238237903,-200.0,0.00020294,20]
[379277026,1755238237913,-200.0,0.00020294,20]
[379277027,1755238237922,-200.0,0.00020294,20]
[379277028,1755238237932,-200.0,0.00020294,20]
[379277029,1755238237942,-200.0,0.00020294,20]
[379277030,1755238237952,-500.0,0.00020398,2]
[379277031,1755238237964,-1790.76,0.00021033,2]
[379277032,1755238237974,-460.0,0.00021287,2]
[379277033,1755238237985,-151.0,0.00021288,2]
[379277034,1755238237994,-151.0,0.00021288,2]
[379277035,1755238238004,-11589.36803198,0.00021288,2]
[379277036,1755238238013,-151.0,0.00021288,2]
[379277037,1755238238023,-3000.0,0.000213,2]
[379277038,1755238238033,-3000.0,0.0002131,2]
[379277039,1755238238042,-3000.0,0.0002132,2]
[379277040,1755238238051,-3000.0,0.0002133,2]
[379277041,1755238238061,-460.0,0.00021339,2]
[379277042,1755238238070,-460.0,0.00021339,2]
[379277043,1755238238079,-3000.0,0.0002134,2]
[379277044,1755238238090,-3000.0,0.0002135,2]
[379277045,1755238238099,-3000.0,0.0002136,2]
[379277046,1755238238108,-528.28344625,0.00021363,2]
[379277047,1755238238118,-462.0440047,0.00021363,2]
[379277048,1755238238127,-160.0,0.00021363,2]
[379277049,1755238238136,-160.0,0.00021363,2]
[379277050,1755238238145,-160.0,0.00021363,2]
[379277051,1755238238155,-160.0,0.00021364,2]
[379277052,1755238238164,-160.0,0.00021364,2]
[379277053,1755238238173,-160.0,0.00021364,2]
[379277054,1755238238182,-160.0,0.00021364,2]
[379277055,1755238238192,-3000.0,0.0002137,2]
[379277056,1755238238202,-841.39492524,0.0002137,2]
[379277057,1755238238211,-500.0,0.00021379,2]
[379277058,1755238238220,-253.34879266,0.00021379,2]
[379277059,1755238238230,-3000.0,0.0002138,2]
[379277060,1755238238239,-3000.0,0.0002139,2]
[379277061,1755238238249,-3000.0,0.000214,2]
[379277062,1755238238258,-3000.0,0.0002141,2]
[379277063,1755238238268,-3000.0,0.0002142,2]
[379277064,1755238238277,-205.074651,0.00021428,2]
[379277065,1755238238287,-151.0,0.00021428,2]
[379277066,1755238238296,-151.0,0.00021428,2]
[379277067,1755238238305,-151.0,0.00021428,2]
[379277068,1755238238315,-151.0,0.00021428,2]
[379277069,1755238238325,-151.0,0.00021428,2]
[379277070,1755238238335,-151.0,0.00021428,2]
[379277071,1755238238345,-151.0,0.00021428,2]
[379277072,1755238238354,-151.0,0.00021428,2]
[379277073,1755238238364,-151.0,0.00021428,2]
[379277074,1755238238373,-151.0,0.00021428,2]
[379277075,1755238238383,-3000.0,0.0002143,2]
[379277076,1755238238392,-154.274366,0.00021438,2]
[379277077,1755238238402,-152.622411,0.00021438,2]
[379277078,1755238238412,-152.129772,0.00021438,2]
[379277079,1755238238422,-151.0,0.00021438,2]
[379277081,1755238238431,-151.0,0.00021438,2]
[379277083,1755238238441,-163.044903,0.00021438,2]
[379277085,1755238238450,-163.044903,0.00021438,2]
[379277087,1755238238460,-154.69475,0.00021439,2]
[379277089,1755238238470,-151.0,0.00021439,2]
[379277091,1755238238480,-151.0,0.00021439,2]
[379277093,1755238238489,-151.0,0.00021439,2]
[379277095,1755238238498,-151.0,0.00021439,2]
[379277097,1755238238507,-151.0,0.00021439,2]
[379277099,1755238238517,-151.0,0.00021439,2]
[379277101,1755238238526,-151.0,0.00021439,2]
[379277103,1755238238535,-151.0,0.00021439,2]
[379277105,1755238238545,-247.083007,0.00021439,2]
[379277107,1755238238554,-247.083007,0.00021439,2]
[379277109,1755238238563,-247.083007,0.00021439,2]
[379277111,1755238238573,-247.083007,0.00021439,2]
[379277113,1755238238582,-247.083007,0.00021439,2]
[379277115,1755238238592,-247.083007,0.00021439,2]
[379277116,1755238238602,-247.083007,0.00021439,2]
[379277118,1755238238611,-247.083007,0.00021439,2]
[379277120,1755238238621,-151.0,0.00021439,2]
[379277122,1755238238631,-151.0,0.00021439,2]
[379277124,1755238238640,-151.0,0.00021439,2]
[379277127,1755238238650,-3000.0,0.0002144,2]
[379277129,1755238238661,-3000.0,0.0002145,2]
[379277130,1755238238669,-151.0,0.0002145,2]
[379277132,1755238238679,-293.0724,0.0002145,2]
[379277134,1755238238688,-247.083007,0.0002145,2]
[379277136,1755238238702,-247.083007,0.0002145,2]
[379277138,1755238238712,-163.044903,0.0002145,2]
[379277140,1755238238721,-163.044903,0.0002145,2]
[379277143,1755238238734,-3000.0,0.0002146,2]
[379277145,1755238238745,-3000.0,0.0002147,2]
[379277147,1755238238755,-152.343403,0.0002147,2]
[379277149,1755238238766,-3000.0,0.0002148,2]
[379277151,1755238238776,-1000.0,0.0002148,2]
[379277152,1755238238785,-633.887378,0.0002148,2]
[379277154,1755238238795,-5850.0,0.0002149,2]
[379277157,1755238238805,-151.0,0.0002149,2]
[379277158,1755238238814,-163.044903,0.0002149,2]
[379277160,1755238238824,-163.044903,0.0002149,2]
[379277162,1755238238833,-460.0,0.00021561,2]
[379277164,1755238238842,-460.0,0.00021613,2]
[379277166,1755238238851,-460.0,0.00021613,2]
[379277168,1755238238860,-420.0,0.00021667,2]
[379277170,1755238238870,-460.0,0.00021835,2]
[379277172,1755238238881,-247.083007,0.00021876,2]
[379277174,1755238238890,-247.083007,0.00021876,2]
[379277176,1755238238899,-460.0,0.00021887,2]
[379277178,1755238238908,-460.0,0.00021887,2]
[379277180,1755238238918,-414.200756,0.00021918,2]
[379277182,1755238238927,-414.200756,0.00021918,2]
[379277184,1755238238936,-414.200756,0.00021918,2]
[379277186,1755238238946,-414.200756,0.00021918,2]
[379277188,1755238238956,-2387.68,0.00021948,2]
[379277190,1755238238966,-414.200756,0.0002199,7]
[379277192,1755238238975,-414.200756,0.0002199,7]
[379277194,1755238238984,-5155.19137979,0.00022,3]
[379277196,1755238238993,-159.0,0.00022,5]
[379277198,1755238239003,-290.0,0.00022,2]
[379277200,1755238239012,-972.0,0.0002207,2]
[379277202,1755238239021,-636.0,0.0002207,2]
[379277204,1755238239030,-2151.0,0.0002207,2]
[379277206,1755238239040,-408.0,0.0002207,2]
[379277208,1755238239050,-164.09388388,0.00022082,2]
[379277210,1755238239059,-460.0,0.00022109,2]
[379277212,1755238239068,-841.39492523,0.00022128,2]
[379277214,1755238239078,-160.0,0.00022144,2]
[379277216,1755238239087,-460.0,0.00022161,2]
[379277218,1755238239096,-460.0,0.00022161,2]
[379277220,1755238239105,-158.195,0.00022209,2]
[379277222,1755238239115,-200.0,0.00022281,20]
[379277224,1755238239125,-200.0,0.00022281,20]
[379277226,1755238239134,-200.0,0.00022281,20]
[379277227,1755238239143,-200.0,0.00022281,20]
[379277229,1755238239153,-200.0,0.00022281,20]
[379277232,1755238239163,-200.0,0.00022281,20]
[379277234,1755238239173,-200.0,0.00022281,20]
[379277236,1755238239182,-200.0,0.00022281,20]